bitfinex/quotes_ETHUSD_20250622
["timestamp","ask_amount","ask_price","bid_price","bid_amount"]
[1750582775787,19.008,2277.9,2277.8,4.39020107]
[1750582775987,19.008,2277.9,2277.7,4.39025242]
[1750582776211,19.008,2277.9,2277.8,4.39020107]
[1750582778420,19.008,2277.9,2277.7,4.39031022]
[1750582779230,19.008,2277.9,2277.8,4.39020107]
[1750582780095,19.008,2277.9,2277.8,5.18300107]
[1750582781425,17.163,2278.0,2277.9,4.38992654]
[1750582782897,7.163,2278.0,2277.9,4.38992654]
[1750582783119,11.846,2278.3,2277.8,0.7928]
[1750582783317,10.0,2278.1,2277.9,4.38982222]
[1750582783633,7.163,2278.0,2277.9,4.38982222]
[1750582784495,7.163,2278.0,2277.8,4.39013082]
[1750582784923,7.20695276,2278.0,2277.8,4.39013082]
[1750582786846,7.163,2278.0,2277.8,4.39013082]
[1750582787160,7.163,2278.0,2277.9,4.39000834]
[1750582789930,7.163,2278.0,2277.6,0.7928]
[1750582790131,7.20695276,2278.0,2277.6,0.7928]
[1750582790435,7.20695276,2278.0,2277.9,4.39000834]
[1750582790842,7.163,2278.0,2277.9,4.39000834]
[1750582791043,7.163,2278.0,2277.8,4.39010516]
[1750582791359,7.20695276,2278.0,2277.8,4.39010516]
[1750582794072,7.20695276,2278.0,2277.7,4.39022248]
[1750582794250,7.20695276,2278.0,2277.8,4.39017281]
[1750582795272,7.20695276,2278.0,2277.7,4.39029417]
[1750582795458,7.20695276,2278.0,2277.5,4.39077936]
[1750582795779,9.21172282,2278.0,2277.5,4.39060766]
[1750582795949,9.16777006,2278.0,2277.4,5.17542471]
[1750582796146,0.04395276,2277.9,2277.5,4.39062447]
[1750582796346,10.0,2277.7,2277.3,4.39116497]
[1750582796546,7.19695276,2277.6,2277.5,4.39077936]
[1750582797236,7.19695276,2277.6,2277.4,4.39087395]
[1750582797472,7.19695276,2277.6,2277.4,4.39095591]
[1750582798243,7.19695276,2277.6,2277.2,0.7845]
[1750582798441,7.19695276,2277.6,2277.3,4.39116497]
[1750582798647,7.19695276,2277.6,2277.4,4.39092326]
[1750582798859,7.153,2277.6,2277.5,4.39077936]
[1750582799965,1.849,2277.8,2277.7,4.39039381]
[1750582800162,19.003,2277.8,2277.6,4.3905832]
[1750582800366,0.04395276,2277.7,2277.5,4.39068207]
[1750582800868,10.04395276,2277.7,2277.5,4.39076475]
[1750582801046,9.003,2277.8,2277.5,4.39076475]
[1750582801243,9.003,2277.8,2277.0,4.39169679]
[1750582801244,0.8298,2277.6,2277.4,4.39088167]
[1750582801662,0.8298,2277.6,2277.5,4.39077936]
[1750582801854,9.8328,2277.8,2277.5,4.39077936]
[1750582802062,0.04395276,2277.7,2277.5,4.39077936]
[1750582802675,9.8328,2277.8,2277.6,4.39058658]
[1750582803175,9.8328,2277.8,2277.5,4.3907721]
[1750582803176,2.07853647,2278.0,2277.4,0.7768]
[1750582803368,2.07853647,2278.0,2277.9,4.39000834]
[1750582803550,17.156,2277.9,2277.8,4.39005148]
[1750582804476,0.22951602,2278.2,2277.8,4.39020107]
[1750582804666,1.849,2278.5,2278.3,4.38911388]
[1750582805010,10.0,2278.3,2278.0,0.8046]
[1750582805286,0.04395276,2278.2,2278.0,4.3896866]
[1750582805659,0.04395276,2278.2,2278.1,4.38962293]
[1750582805860,7.20195276,2278.2,2278.1,4.38962293]
[1750582806070,7.158,2278.2,2278.1,4.38962293]
[1750582806780,0.22949334,2278.5,2278.4,4.38904494]
[1750582806986,17.38649334,2278.5,2278.4,4.38904494]
[1750582807484,17.38749334,2278.5,2278.4,4.38904494]
[1750582807683,10.22949334,2278.5,2278.4,4.38904494]
[1750582807886,17.38749334,2278.5,2278.4,4.38904494]
[1750582808083,0.22949334,2278.5,2278.4,4.38904494]
[1750582808302,1.89295276,2278.9,2278.8,4.38827453]
[1750582808509,0.04395276,2279.1,2279.0,4.38788942]
[1750582808656,0.22942363,2279.2,2279.1,4.38769689]
[1750582808871,17.159,2279.2,2279.1,4.38769689]
[1750582809393,7.159,2279.2,2279.0,4.38779745]
[1750582809725,10.04395276,2279.1,2278.9,4.38807102]
[1750582810003,43.2009,2279.4,2279.3,4.38731189]
[1750582810218,60.3619,2279.4,2279.3,4.38731189]
[1750582810410,53.7509,2279.4,2279.2,4.38742201]
[1750582810575,11.849,2279.4,2279.3,4.38731189]
[1750582810776,19.009,2279.4,2279.3,4.38731189]
[1750582811203,19.009,2279.4,2279.2,4.38742171]
[1750582811423,0.04395276,2279.3,2279.0,4.3877473]
[1750582811631,0.04395276,2279.3,2279.1,4.38767739]
[1750582811797,0.04395276,2279.3,2279.0,4.38781701]
[1750582812234,0.04395276,2279.3,2279.0,4.38788942]
[1750582812404,0.04395276,2279.3,2279.2,4.38750438]
[1750582812720,19.009,2279.4,2279.3,4.38731189]
[1750582813227,19.008,2279.4,2279.1,4.38764807]
[1750582813429,0.04395276,2279.3,2279.2,4.38750438]
[1750582813842,19.008,2279.4,2279.3,4.38731189]
[1750582814141,11.849,2279.4,2279.3,4.38731189]
[1750582814447,5.0,2280.0,2279.9,4.38615728]
[1750582814793,12.20695276,2280.0,2279.9,4.38615728]
[1750582814990,5.0,2280.0,2279.9,4.38615728]
[1750582815193,5.0,2280.0,2279.9,5.13875728]
[1750582816424,5.0,2280.0,2279.9,5.18261526]
[1750582816598,5.0,2280.0,2279.9,5.13875728]
[1750582817231,5.0,2280.0,2279.9,5.18261355]
[1750582817556,5.0,2280.0,2279.9,5.13875728]
[1750582818438,5.0,2280.0,2279.9,16.32582166]
[1750582818817,5.0,2280.0,2279.9,26.32582166]
[1750582820140,1.55432878,2280.0,2279.9,26.32582166]
[1750582820464,0.63243088,2280.0,2279.9,26.32582166]
[1750582820859,0.63243088,2280.0,2279.9,35.35182166]
[1750582821061,0.63243088,2280.0,2279.9,26.32582166]
[1750582821432,0.63243088,2280.0,2279.9,35.35482166]
[1750582821625,0.63243088,2280.0,2279.9,26.32582166]
[1750582821825,0.63243088,2280.0,2279.9,35.35482166]
[1750582822548,0.63243088,2280.0,2279.9,24.16675728]
[1750582823371,0.63243088,2280.0,2279.9,15.13875728]
[1750582823945,0.63243088,2280.0,2279.9,5.13875728]
[1750582826685,0.63243088,2280.0,2279.9,5.18261178]
[1750582827089,0.63243088,2280.0,2279.9,16.36967616]
[1750582827397,0.63243088,2280.0,2279.9,23.50482166]
[1750582827982,0.63243088,2280.0,2279.9,24.70482166]
[1750582828884,0.63243088,2280.0,2279.9,23.50482166]
[1750582829690,0.63243088,2280.0,2279.9,16.32582166]
[1750582829899,0.63243088,2280.0,2279.9,14.18675728]
[1750582830461,0.63243088,2280.0,2279.9,12.32075728]
[1750582831193,0.63243088,2280.0,2279.9,4.38615728]
[1750582831560,1.41973088,2280.0,2279.9,4.38615728]
[1750582832092,0.63243088,2280.0,2279.9,4.38615728]
[1750582833698,0.63243088,2280.0,2279.7,4.38643636]
[1750582833902,0.04395276,2279.9,2279.8,4.38634967]
[1750582834208,0.63243088,2280.0,2279.9,4.38615728]
[1750582834794,0.63023949,2280.0,2279.9,5.18355728]
[1750582834999,0.63023949,2280.0,2279.9,5.22741679]
[1750582836005,0.63023949,2280.0,2279.9,16.37062166]
[1750582837804,0.63023949,2280.0,2279.9,23.57362166]
[1750582839316,0.2192008,2280.8,2280.7,4.38461875]
[1750582839982,1.0372008,2280.8,2280.7,4.38461875]
[1750582840424,1.0372008,2280.8,2280.6,4.38470866]
[1750582840787,1.0372008,2280.8,2280.7,4.38461875]
[1750582841283,1.0372008,2280.8,2280.5,4.38490813]
[1750582841487,0.04395276,2280.7,2279.9,4.38601265]
[1750582841731,0.04395276,2280.7,2280.4,4.38509999]
[1750582842302,0.818,2280.6,2280.4,4.38509999]
[1750582842651,0.818,2280.6,2279.8,1.19844602]
[1750582842652,0.818,2280.6,2280.3,4.38521603]
[1750582842833,0.818,2280.6,2280.5,4.38500328]
[1750582843900,1.29262088,2280.8,2280.7,4.38461875]
[1750582845708,1.0024008,2280.8,2280.7,4.38461875]
[1750582846840,1.04635356,2280.8,2280.7,4.38461875]
[1750582847040,8.24635356,2280.8,2280.7,4.38461875]
[1750582847208,8.2024008,2280.8,2280.7,4.38461875]
[1750582847546,8.2024008,2280.8,2280.6,4.38471349]
[1750582847747,8.2024008,2280.8,2280.7,4.38461875]
[1750582848339,8.2024008,2280.8,2280.5,4.38489812]
[1750582848546,0.04395276,2280.7,2280.6,4.38481101]
[1750582848727,8.2024008,2280.8,2280.6,4.38481101]
[1750582848954,0.2192008,2280.8,2280.7,15.14251875]
[1750582852268,0.7832,2282.3,2282.2,4.38173692]
[1750582852673,0.22911198,2282.6,2282.3,4.3815241]
[1750582852674,1.01231198,2282.6,2282.3,4.3815241]
[1750582852872,0.7832,2282.4,2281.4,5.14106287]
[1750582853033,0.7832,2282.2,2281.7,4.38255028]
[1750582853234,0.04395276,2282.1,2281.2,4.38365772]
[1750582853537,1.05741528,2282.3,2282.2,4.38173692]
[1750582853960,1.01228539,2282.7,2282.5,4.38097084]
[1750582854293,1.05623815,2282.7,2282.6,4.38096907]
[1750582854600,0.2192008,2283.1,2282.8,4.38050665]
[1750582854601,0.7832,2283.0,2282.8,4.38050665]
[1750582854890,10.82715276,2283.0,2282.7,4.38066839]
[1750582855057,12.02733536,2282.9,2282.8,4.38058524]
[1750582855261,0.7832,2283.0,2282.8,4.38058524]
[1750582855262,0.7832,2283.0,2282.8,4.38051021]
[1750582855453,10.7832,2283.0,2282.4,4.38132319]
[1750582855674,10.7832,2283.0,2282.2,1.19361359]
[1750582855675,0.7832,2283.0,2282.9,4.38039335]
[1750582855993,0.7332,2283.0,2282.9,4.38039335]
[1750582856194,9.9602,2283.0,2282.9,4.38039335]
[1750582856556,11.00104602,2283.0,2282.8,4.38052639]
[1750582856759,11.00104602,2283.0,2282.9,4.38039335]
[1750582856999,11.00104602,2283.0,2282.8,4.38050364]
[1750582857165,11.00104602,2283.0,2282.8,4.3805168]
[1750582857501,11.00104602,2283.0,2282.3,4.38151311]
[1750582857704,11.00104602,2283.0,2282.8,4.38057324]
[1750582858002,11.00104602,2283.0,2282.7,4.38062036]
[1750582858318,0.7332,2283.0,2282.9,4.38039335]
[1750582858514,9.9552,2283.0,2282.9,4.38039335]
[1750582858660,0.2192008,2283.1,2282.9,4.38039335]
[1750582858860,0.2192008,2283.1,2283.0,4.38020148]
[1750582859093,0.9752008,2283.1,2282.9,4.38037682]
[1750582859396,0.9752008,2283.1,2282.7,4.38060641]
[1750582859691,0.04395276,2283.0,2282.6,4.38086054]
[1750582859892,0.04395276,2283.0,2282.5,4.38112317]
[1750582860068,0.04395276,2283.0,2282.7,4.380744]
[1750582860679,0.04395276,2283.0,2282.7,4.38077714]
[1750582860999,0.04395276,2283.0,2282.8,4.38057924]
[1750582861365,10.9752008,2283.1,2282.8,4.38057924]
[1750582861576,10.0,2282.9,2282.8,4.38056493]
[1750582862094,0.9752008,2283.1,2282.9,4.38028871]
[1750582862388,19.221,2283.0,2282.9,4.38029075]
[1750582862718,10.9752008,2283.1,2283.0,4.38020148]
[1750582862904,0.2192008,2283.1,2283.0,4.38020148]
[1750582863104,7.5242008,2283.1,2283.0,4.42399878]
[1750582863306,7.5242008,2283.1,2283.0,4.38020148]
[1750582863510,7.5252008,2283.1,2283.0,4.38020148]
[1750582864112,7.5252008,2283.1,2282.9,4.38026445]
[1750582864337,7.305,2283.0,2282.9,4.3803914]
[1750582865023,0.2192008,2283.1,2283.0,4.38020148]
[1750582865205,7.5232008,2283.1,2283.0,4.38020148]
[1750582866945,7.5232008,2283.1,2282.8,4.38050508]
[1750582867109,0.8265,2283.0,2282.8,4.38043602]
[1750582867646,0.8265,2283.0,2282.7,4.38070331]
[1750582867647,7.31,2282.9,2282.7,4.38070331]
[1750582867949,0.8265,2282.8,2282.6,4.38085766]
[1750582868253,0.04395276,2282.7,2282.3,4.38154197]
[1750582868442,0.04395276,2282.7,2282.5,4.38113605]
[1750582868742,10.8265,2282.8,2282.6,4.38096907]
[1750582868948,19.224,2282.7,2282.6,4.38088046]
[1750582869249,19.224,2282.7,2282.4,4.38124138]
[1750582869435,0.04395276,2282.6,2282.4,4.38124138]
[1750582869742,19.224,2282.7,2282.5,4.381161]
[1750582869948,10.0,2282.7,2282.6,4.38096907]
[1750582870122,19.224,2282.7,2282.6,4.38096907]
[1750582870812,10.0,2282.7,2282.6,4.38096907]
[1750582871213,19.221,2282.7,2282.6,4.38096907]
[1750582871612,19.221,2282.7,2282.0,5.16774389]
[1750582871613,19.66129303,2282.7,2282.0,5.16774389]
[1750582871814,19.221,2282.7,2282.1,0.0438131]
[1750582872123,10.0,2282.7,2282.6,4.38096907]
[1750582872459,19.218,2282.7,2282.6,4.38096907]
[1750582873059,10.0,2282.7,2282.6,4.38096907]
[1750582873361,17.308,2282.7,2282.6,4.38096907]
[1750582874096,1.914,2282.9,2282.8,4.38058524]
[1750582874213,0.2192008,2283.1,2283.0,4.38020148]
[1750582874418,9.4442008,2283.1,2283.0,4.38020148]
[1750582874621,19.4442008,2283.1,2283.0,4.38020148]
[1750582875358,10.2192008,2283.1,2283.0,4.38020148]
[1750582875658,17.5312008,2283.1,2283.0,4.38020148]
[1750582876664,17.5292008,2283.1,2283.0,4.38020148]
[1750582876847,10.0,2283.0,2282.9,4.38031448]
[1750582877046,0.7723,2282.9,2282.3,4.38154493]
[1750582877232,7.307,2282.8,2282.7,4.38059381]
[1750582877559,9.221,2282.8,2282.7,4.38059381]
[1750582877709,9.221,2282.8,2282.6,4.3808873]
[1750582877914,9.221,2282.8,2282.5,4.3810613]
[1750582877915,10.04395276,2282.7,2282.5,4.3810613]
[1750582878146,10.0,2282.7,2282.5,4.3810613]
[1750582879758,10.0,2282.7,2282.0,0.7767]
[1750582879759,0.04395276,2282.6,2282.0,0.7767]
[1750582879965,10.0,2282.7,2282.5,4.381161]
[1750582880133,17.304,2282.6,2282.5,4.381161]
[1750582880562,17.302,2282.6,2282.5,4.381161]
[1750582881855,17.302,2282.6,2282.4,4.38125054]
[1750582882151,17.302,2282.6,2282.3,4.38148578]
[1750582882152,0.04395276,2282.5,2282.3,4.38144822]
[1750582882356,0.04395276,2282.5,2282.4,4.38135296]
[1750582882578,7.35295276,2282.5,2282.3,4.3814509]
[1750582882737,0.7876,2282.4,2282.0,0.7767]
[1750582882944,7.35295276,2282.3,2282.0,4.38203103]
[1750582883249,40.7876,2282.0,2281.1,0.7616]
[1750582883552,10.7987,2281.8,2281.4,4.38326727]
[1750582883755,9.29895276,2281.7,2281.5,4.3830596]
[1750582883961,9.255,2281.7,2281.5,4.3830596]
[1750582884301,0.04395276,2281.6,2281.3,4.38330086]
[1750582884458,7.313,2281.5,2281.3,4.38330086]
[1750582884642,7.313,2281.5,2281.4,4.38327342]
[1750582885048,1.98595276,2281.6,2281.5,4.3830813]
[1750582885359,9.255,2281.6,2281.5,4.3830813]
[1750582885671,0.7987,2281.8,2281.5,4.38298808]
[1750582885866,9.255,2281.6,2281.5,4.38298808]
[1750582886795,10.0,2282.0,2281.7,4.38269711]
[1750582887092,9.29695276,2281.9,2281.7,4.38269711]
[1750582887291,0.7987,2282.1,2281.7,4.38269711]
[1750582887591,10.0,2281.8,2281.7,4.38269711]
[1750582887898,9.251,2281.8,2281.7,4.38269711]
[1750582889009,11.18706438,2282.4,2279.2,7.40426977]
[1750582889010,0.8167,2282.5,2281.5,0.7988]
[1750582889145,11.18706438,2283.0,2281.4,11.18706438]
[1750582889146,0.04395276,2282.9,2282.1,4.38183727]
[1750582889494,0.8167,2283.0,2282.8,4.38058524]
[1750582889645,0.8167,2283.0,2282.9,4.38039335]
[1750582889846,10.8167,2283.0,2282.8,4.38048675]
[1750582890102,17.316,2282.9,2282.8,4.38048675]
[1750582890391,17.316,2282.9,2282.7,4.38073215]
[1750582890392,10.0,2282.8,2282.7,4.3806934]
[1750582890887,7.316,2282.9,2282.4,4.38128561]
[1750582891096,0.86325276,2282.8,2282.6,4.38096878]
[1750582891247,0.86325276,2282.8,2282.1,5.18069732]
[1750582891248,1.41325276,2282.8,2282.7,4.38077714]
[1750582891443,1.41325276,2282.8,2282.1,0.7988]
[1750582891651,1.41325276,2282.8,2282.4,4.38120617]
[1750582892149,1.41325276,2282.8,2282.5,4.38114484]
[1750582892476,2.32393473,2282.8,2282.5,4.38114484]
[1750582892776,10.5,2282.7,2282.2,4.38157153]
[1750582892981,9.29995276,2282.6,2282.4,4.38132174]
[1750582893176,9.256,2282.6,2282.4,4.38132174]
[1750582893384,0.04395276,2282.5,2282.3,4.3814582]
[1750582893543,10.04395276,2282.5,2282.1,4.38179142]
[1750582893746,11.79572043,2282.5,2282.1,4.38179142]
[1750582893947,0.8215,2282.4,2282.0,4.38206388]
[1750582894146,7.35795276,2282.3,2282.0,4.38206388]
[1750582894558,7.35795276,2282.3,2281.9,4.38224801]
[1750582894958,7.35795276,2282.3,2280.7,1.942]
[1750582894959,10.55,2282.2,2280.7,1.942]
[1750582895158,0.8215,2281.9,2281.8,4.38250503]
[1750582895379,8.17845276,2281.9,2281.1,4.38377618]
[1750582895589,0.04395276,2281.8,2281.6,4.38278729]
[1750582896085,0.04395276,2281.8,2281.6,4.38270082]
[1750582896581,0.04395276,2281.8,2281.7,4.38269711]
[1750582896783,10.8215,2281.9,2281.8,4.38250503]
[1750582896995,20.0775,2281.9,2281.8,4.38250503]
[1750582897404,20.0775,2281.9,2281.7,4.38260539]
[1750582897553,0.04395276,2281.8,2281.7,4.38260539]
[1750582897752,0.04395276,2281.8,2281.6,4.38282844]
[1750582897953,0.04395276,2281.8,2281.4,4.38325246]
[1750582898266,11.06658139,2281.8,2281.3,4.38328973]
[1750582898569,10.0,2281.5,2280.8,4.38442651]
[1750582898749,9.29995276,2281.4,2280.8,4.38442651]
[1750582898951,9.256,2281.4,2280.8,4.38442651]
[1750582899221,9.256,2281.4,2281.2,4.38348232]
[1750582899384,7.315,2281.3,2281.2,4.38365772]
[1750582899980,0.8256,2281.8,2281.7,4.38269711]
[1750582900182,0.04395276,2282.0,2281.9,4.38214039]
[1750582900485,9.812,2282.0,2281.9,4.38214039]
[1750582900887,11.3536,2282.1,2281.8,4.38240505]
[1750582901087,0.04395276,2282.0,2281.9,4.38220544]
[1750582901287,24.03896,2282.1,2282.0,4.38212094]
[1750582901787,33.29896,2282.1,2281.8,4.38244207]
[1750582901988,0.04395276,2282.0,2281.8,4.38244207]
[1750582902492,0.04395276,2282.0,2281.8,4.38247147]
[1750582902693,3.37824404,2282.0,2281.8,4.38247147]
[1750582903996,9.253,2281.9,2281.8,4.38247147]
[1750582904208,19.253,2281.9,2281.1,4.82171221]
[1750582904365,19.253,2281.9,2281.6,4.38273815]
[1750582904366,0.04395276,2281.8,2281.6,4.38273815]
[1750582904562,0.04395276,2281.8,2281.7,4.38269711]
[1750582904893,0.8013,2281.6,2281.3,4.38335877]
[1750582905195,7.35295276,2281.5,2281.3,4.38334062]
[1750582905404,7.35295276,2281.5,2281.3,4.38331803]
[1750582905601,7.35295276,2281.5,2281.2,4.3835556]
[1750582906198,7.35295276,2281.5,2280.9,4.38412766]
[1750582906399,17.35295276,2281.5,2281.4,4.38327342]
[1750582906567,17.309,2281.5,2281.4,4.38327342]
[1750582906768,17.309,2281.5,2281.3,4.3833592]
[1750582907094,0.04395276,2281.4,2281.2,4.38355723]
[1750582907765,0.04395276,2281.4,2281.3,4.38346556]
[1750582908599,0.59395276,2281.4,2280.7,0.8176]
[1750582908903,0.04395276,2281.4,2281.3,4.38346556]
[1750582909098,10.55,2281.5,2281.4,4.38327342]
[1750582909305,11.943,2281.5,2281.4,4.38327342]
[1750582909801,19.245,2281.5,2281.4,4.38327342]
[1750582911807,17.296,2281.5,2281.4,4.38327342]
[1750582913113,17.296,2281.5,2281.3,4.3833141]
[1750582913294,0.04395276,2281.4,2281.3,4.3833141]
[1750582913515,0.04395276,2281.4,2281.2,4.38356115]
[1750582913695,7.297,2281.3,2281.2,4.38356115]
[1750582915578,7.34095276,2281.3,2281.2,4.38356115]
[1750582920448,7.32495276,2281.3,2281.2,4.38356115]
[1750582920823,19.32974804,2281.3,2280.7,4.38461875]
[1750582921046,9.211,2281.2,2281.0,4.38385395]
[1750582921226,9.211,2281.2,2281.1,4.38384989]
[1750582921628,9.211,2281.2,2281.0,4.38397982]
[1750582921846,10.0,2280.5,2280.0,0.7914]
[1750582922146,35.17692695,2279.5,2279.4,4.638]
[1750582922342,35.17692695,2279.5,2279.4,5.188]
[1750582922343,50.019,2279.5,2279.4,5.188]
[1750582922634,0.2292,2279.7,2279.6,4.93673451]
[1750582923860,0.2292,2279.7,2279.6,5.70563451]
[1750582925206,0.2292,2279.7,2279.6,15.70563451]
[1750582925820,0.2292,2279.7,2279.6,15.15563451]
[1750582926017,0.2292,2279.7,2279.6,15.70563451]
[1750582926345,0.2292,2279.7,2279.6,5.15563451]
[1750582927162,0.2292,2279.7,2279.6,4.38673451]
[1750582927608,0.2292,2279.7,2279.2,4.38750438]
[1750582927808,0.2292,2279.7,2279.6,4.38673451]
[1750582928142,7.33,2279.7,2279.1,0.7689]
[1750582928356,0.55,2279.6,2279.4,4.38711674]
[1750582928510,0.55,2279.6,2279.3,4.3872473]
[1750582928702,1.41845,2279.6,2279.2,4.38739229]
[1750582928907,1.41845,2279.6,2279.0,4.38787571]
[1750582929143,1.41845,2279.6,2278.8,0.7606]
[1750582929446,10.55,2279.4,2279.0,4.38786884]
[1750582929650,10.55,2279.4,2278.9,4.38806081]
[1750582929837,9.268,2279.3,2278.9,4.38794555]
[1750582930012,9.268,2279.3,2279.0,4.38784999]
[1750582930209,0.55,2279.0,2278.1,0.43249958]
[1750582930431,0.55,2279.0,2278.7,4.38843083]
[1750582930432,9.272,2278.9,2278.7,4.38843083]
[1750582930652,9.272,2278.9,2278.0,5.1502521]
[1750582930858,12.7385,2278.8,2277.8,0.7606]
[1750582931023,10.0,2278.6,2278.5,4.3886927]
[1750582931219,10.0,2278.6,2277.9,0.7606]
[1750582931423,0.55,2278.5,2278.1,4.38951002]
[1750582931637,1.3545,2278.5,2277.5,0.7606]
[1750582931857,3.22385,2278.5,2278.0,4.38967809]
[1750582932158,0.55,2278.3,2277.8,4.39011403]
[1750582932456,10.0,2278.4,2277.8,4.39011403]
[1750582932457,0.55,2278.1,2277.8,4.39015577]
[1750582932819,0.55,2278.1,2277.7,4.39032474]
[1750582933022,0.55,2278.1,2277.6,4.39058658]
[1750582933023,1.3545,2277.9,2277.4,4.39095074]
[1750582933365,1.3545,2277.9,2277.2,5.15193634]
[1750582933366,0.8045,2277.9,2277.2,0.7606]
[1750582933561,10.0,2278.3,2278.2,4.38943025]
[1750582933759,30.0,2278.2,2277.3,0.7984]
[1750582933944,0.55,2278.1,2277.3,0.7984]
[1750582934145,0.55,2278.1,2277.6,4.39058658]
[1750582934443,9.334,2278.0,2277.8,4.3901855]
[1750582934646,9.334,2278.0,2277.7,4.39037219]
[1750582934846,9.334,2278.0,2277.8,4.39019273]
[1750582935231,10.55,2278.1,2277.9,4.38999549]
[1750582935431,19.881,2278.0,2277.9,4.38999549]
[1750582936825,19.333,2278.0,2277.9,4.38999549]
[1750582937461,10.0,2278.0,2277.9,4.38999549]
[1750582937661,19.327,2278.0,2277.9,4.38999549]
[1750582937869,1.3754,2278.4,2278.3,4.38923758]
[1750582937870,0.8254,2278.4,2278.3,4.38923758]
[1750582938172,1.935,2278.3,2278.2,4.38943025]
[1750582938327,7.394,2278.3,2278.2,4.38943025]
[1750582938654,7.41692,2278.3,2278.2,4.38943025]
[1750582942361,7.41692,2278.3,2278.1,4.38946513]
[1750582942530,7.41692,2278.3,2278.2,4.38943025]
[1750582943032,9.35592,2278.3,2278.2,4.38943025]
[1750582943640,0.02292,2278.3,2278.2,4.38943025]
[1750582944043,7.42192,2278.3,2278.2,4.38943025]
[1750582944234,7.399,2278.3,2278.2,4.38943025]
[1750582945129,10.0,2278.8,2278.7,4.3884671]
[1750582945327,19.389,2278.8,2278.7,4.3884671]
[1750582945928,19.389,2278.8,2278.1,5.21539379]
[1750582946130,10.0,2278.6,2278.3,4.38906472]
[1750582946334,0.55,2278.4,2277.5,0.8259]
[1750582946531,10.0,2278.2,2278.1,4.38962293]
[1750582946781,11.993,2278.2,2278.1,4.38962293]
[1750582947428,0.55,2278.4,2278.3,4.38923758]
[1750582947632,10.7696,2278.9,2278.6,4.3884813]
[1750582947832,19.387,2278.8,2278.7,4.38843636]
[1750582948037,19.387,2278.8,2278.6,4.38857753]
[1750582948602,19.387,2278.8,2278.1,4.38955554]
[1750582948603,0.55,2278.7,2278.1,4.38955554]
[1750582948744,23.67538572,2278.8,2277.8,4.39009358]
[1750582948745,10.55,2278.3,2277.8,4.39009358]
[1750582948947,9.391,2278.2,2277.8,4.39009358]
[1750582949170,9.391,2278.2,2278.0,4.38965718]
[1750582949880,0.55,2278.3,2278.0,4.38965718]
[1750582950079,7.406,2278.3,2278.0,0.8035]
[1750582950281,7.406,2278.3,2278.2,4.38943025]
[1750582951895,0.7936,2278.8,2278.7,4.3884671]
[1750582952074,20.1966,2278.8,2278.7,4.3884671]
[1750582952252,20.79277515,2278.8,2278.7,4.3884671]
[1750582953657,20.79277515,2278.8,2278.6,4.38853571]
[1750582954208,10.79277515,2278.8,2278.7,4.3884671]
[1750582954381,1.50136979,2279.1,2278.9,4.38808196]
[1750582954692,7.421,2279.0,2278.9,4.38808196]
[1750582956816,1.50136979,2279.1,2278.9,4.38808196]
[1750582956970,1.50136979,2279.1,2279.0,4.38788942]
[1750582957268,8.92036979,2279.1,2279.0,4.38788942]
[1750582957892,10.01170677,2279.1,2278.5,0.7563]
[1750582958102,30.0,2278.9,2278.2,0.7563]
[1750582958396,7.417,2278.8,2278.7,4.38845685]
[1750582960218,1.50136979,2279.1,2279.0,4.38788942]
[1750582964098,1.50136979,2279.1,2279.0,5.19068942]
[1750582970733,1.50136979,2279.1,2279.0,4.38788942]
[1750582971236,1.54532255,2279.1,2279.0,4.38788942]
[1750582974604,1.50136979,2279.1,2279.0,4.38788942]
[1750582976207,1.54532255,2279.1,2279.0,4.38788942]
[1750582977145,0.8142,2279.0,2278.9,4.38797371]
[1750582977520,2.8132,2279.0,2278.9,4.38797371]
[1750582979443,1.999,2279.0,2278.9,4.38797371]
[1750582979629,1.54532255,2279.1,2279.0,4.38788942]
[1750582979945,8.89836979,2279.1,2279.0,4.38788942]
[1750582980430,1.50136979,2279.1,2279.0,4.38788942]
[1750582981558,8.90036979,2279.1,2279.0,4.38788942]
[1750582982039,1.50136979,2279.1,2279.0,5.17278942]
[1750582982540,1.50136979,2279.1,2279.0,16.3598538]
[1750582983268,1.50136979,2279.1,2279.0,5.17278942]
[1750582985874,1.50136979,2279.1,2279.0,4.38788942]
[1750582987376,1.50136979,2279.1,2278.9,4.38790704]
[1750582987584,7.44095276,2279.0,2278.4,0.8191]
[1750582987763,7.44095276,2279.0,2277.9,4.82521481]
[1750582987764,1.69033226,2278.9,2278.6,4.38854085]
[1750582988063,1.69033226,2278.9,2277.9,0.8191]
[1750582988064,0.7961,2278.7,2277.9,0.8191]
[1750582988229,9.44095276,2278.6,2278.4,4.38894528]
[1750582988429,9.397,2278.6,2278.4,4.38894528]
[1750582988660,0.04395276,2278.5,2277.9,0.8191]
[1750582988959,0.8048,2278.3,2278.1,4.38959092]
[1750582989188,7.43995276,2278.2,2278.0,4.38975973]
[1750582990071,1.999,2278.1,2277.7,4.390224]
[1750582990239,0.04395276,2278.0,2277.6,4.39058658]
[1750582990657,0.04395276,2278.0,2277.7,4.39039381]
[1750582990857,0.8048,2277.9,2277.6,4.39044024]
[1750582991059,7.43895276,2277.8,2277.7,4.39039381]
[1750582991265,0.8048,2277.9,2277.8,4.39020107]
[1750582991476,17.395,2277.9,2277.8,4.39020107]
[1750582991681,7.395,2277.9,2277.8,4.39020107]
[1750582992566,0.8048,2278.2,2278.1,4.38962293]
[1750582992763,10.1968,2278.2,2278.1,4.38962293]
[1750582992988,10.0,2278.1,2278.0,4.38976971]
[1750582993328,10.1968,2278.2,2277.9,4.38994357]
[1750582993534,11.06363276,2278.1,2277.3,5.21069352]
[1750582993845,11.01968,2278.1,2277.8,4.39018661]
[1750582994038,0.04395276,2278.0,2277.7,4.39030742]
[1750582994366,0.55,2277.9,2277.3,0.8197]
[1750582994570,0.55,2277.9,2276.9,10.0]
[1750582994571,7.43395276,2277.8,2277.2,4.39128406]
[1750582994742,7.43395276,2277.8,2277.6,4.39047137]
[1750582994938,8.31282804,2277.8,2277.6,4.39047137]
[1750582995156,2.0,2277.7,2277.6,4.39058658]
[1750582995345,2.04395276,2277.7,2277.6,4.39058658]
[1750583000302,0.8048,2277.9,2277.8,4.39020107]
[1750583000504,10.1858,2277.9,2277.8,4.39020107]
[1750583001178,0.55,2277.8,2277.6,4.39056949]